[Event "Titled Tuesday Blitz March 28 Early 2023"]
[White "Kilic, Eray"]
[Black "Kollars, Dmitrij"]
[WhiteFideId "44517173"]
[BlackFideId "12909572"]
[WhiteElo "2328"]
[BlackElo "2584"]
[Result "0-1"]
[Round "03"]
[TimeControl "180+2"]
[Date "2023.03.28"]
[WhiteClock "0:00:06"]
[BlackClock "0:00:10"]

1. e4 {[%clk 0:03:00]}  e5 {[%clk 0:02:45]} 2. Nf3 {[%clk 0:03:01]}  Nc6 {[%clk 0:02:42]} 3. Bb5 {[%clk 0:03:00]}  a6 {[%clk 0:02:42]} 4. Ba4 {[%clk 0:03:01]}  Nf6 {[%clk 0:02:41]} 5. O-O {[%clk 0:03:01]}  Bc5 {[%clk 0:02:39]} 6. c3 {[%clk 0:02:31]}  b5 {[%clk 0:02:37]} 7. Bb3 {[%clk 0:02:30]}  d6 {[%clk 0:02:37]} 8. d4 {[%clk 0:02:27]}  Bb6 {[%clk 0:02:37]} 9. a4 {[%clk 0:02:28]}  Bg4 {[%clk 0:02:37]} 10. h3 {[%clk 0:02:22]}  Bh5 {[%clk 0:02:35]} 11. dxe5 {[%clk 0:02:08]}  Nxe5 {[%clk 0:02:30]} 12. Nbd2 {[%clk 0:02:08]}  O-O {[%clk 0:02:29]} 13. axb5 {[%clk 0:02:02]}  axb5 {[%clk 0:02:30]} 14. Rxa8 {[%clk 0:01:59]}  Qxa8 {[%clk 0:02:30]} 15. g4 {[%clk 0:01:58]}  Nxf3+ {[%clk 0:02:03]} 16. Qxf3 {[%clk 0:01:59]}  Bg6 {[%clk 0:02:04]} 17. Re1 {[%clk 0:01:56]}  Nd7 {[%clk 0:01:27]} 18. Bd5 {[%clk 0:01:39]}  c6 {[%clk 0:01:23]} 19. Bb3 {[%clk 0:01:39]}  Re8 {[%clk 0:01:19]} 20. h4 {[%clk 0:01:36]}  Ne5 {[%clk 0:01:14]} 21. Qg3 {[%clk 0:01:35]}  h5 {[%clk 0:01:12]} 22. gxh5 {[%clk 0:01:06]}  Bxh5 {[%clk 0:01:13]} 23. Kg2 {[%clk 0:01:06]}  Qd8 {[%clk 0:00:54]} 24. Bd1 {[%clk 0:00:59]}  Bxd1 {[%clk 0:00:52]} 25. Rxd1 {[%clk 0:01:00]}  Qf6 {[%clk 0:00:51]} 26. Nf1 {[%clk 0:00:46]}  Qe6 {[%clk 0:00:42]} 27. Be3 {[%clk 0:00:40]}  Nc4 {[%clk 0:00:33]} 28. Bxb6 {[%clk 0:00:33]}  Qxe4+ {[%clk 0:00:32]} 29. Qf3 {[%clk 0:00:34]}  Qxf3+ {[%clk 0:00:32]} 30. Kxf3 {[%clk 0:00:35]}  Nxb6 {[%clk 0:00:33]} 31. Rxd6 {[%clk 0:00:34]}  Nc4 {[%clk 0:00:33]} 32. Rd4 {[%clk 0:00:30]}  Nxb2 {[%clk 0:00:32]} 33. Ne3 {[%clk 0:00:30]}  Na4 {[%clk 0:00:30]} 34. c4 {[%clk 0:00:27]}  b4 {[%clk 0:00:26]} 35. c5 {[%clk 0:00:26]}  Rb8 {[%clk 0:00:26]} 36. Nf5 {[%clk 0:00:24]}  Kf8 {[%clk 0:00:10]} 37. Nd6 {[%clk 0:00:06]}  b3 {[%clk 0:00:07]} 38. Nc4 {[%clk 0:00:03]}  b2 {[%clk 0:00:07]} 39. Nd2 {[%clk 0:00:03]}  Nc3 {[%clk 0:00:06]} 40. Rd6 {[%clk 0:00:04]}  Rc8 {[%clk 0:00:06]} 41. h5 {[%clk 0:00:03]}  b1=Q {[%clk 0:00:06]} 42. Nxb1 {[%clk 0:00:04]}  Nxb1 {[%clk 0:00:07]} 43. h6 {[%clk 0:00:05]}  gxh6 {[%clk 0:00:06]} 44. Rxh6 {[%clk 0:00:05]}  Kg7 {[%clk 0:00:07]} 45. Rd6 {[%clk 0:00:05]}  Nc3 {[%clk 0:00:07]} 46. Ke3 {[%clk 0:00:06]}  Nb5 {[%clk 0:00:07]} 47. Rd1 {[%clk 0:00:05]}  Rc7 {[%clk 0:00:07]} 48. f4 {[%clk 0:00:05]}  Kf6 {[%clk 0:00:08]} 49. Ke4 {[%clk 0:00:05]}  Re7+ {[%clk 0:00:08]} 50. Kf3 {[%clk 0:00:06]}  Re6 {[%clk 0:00:08]} 51. Rh1 {[%clk 0:00:06]}  Nd4+ {[%clk 0:00:08]} 52. Kg4 {[%clk 0:00:07]}  Nb3 {[%clk 0:00:08]} 53. Rh5 {[%clk 0:00:07]}  Ke7 {[%clk 0:00:08]} 54. Kf3 {[%clk 0:00:06]}  Nd2+ {[%clk 0:00:08]} 55. Kg4 {[%clk 0:00:06]}  Nc4 {[%clk 0:00:08]} 56. Rh8 {[%clk 0:00:05]}  Ne3+ {[%clk 0:00:09]} 57. Kf3 {[%clk 0:00:05]}  Nd5 {[%clk 0:00:09]} 58. Rc8 {[%clk 0:00:05]}  Kd7 {[%clk 0:00:09]} 59. Ra8 {[%clk 0:00:05]}  Rf6 {[%clk 0:00:10]} 60. Ra7+ {[%clk 0:00:05]}  Ke6 {[%clk 0:00:10]} 61. Ke4 {[%clk 0:00:06]}  Rxf4+ {[%clk 0:00:10]} 62. Kd3 {[%clk 0:00:06]}  Nb4+ {[%clk 0:00:11]} 63. Ke3 {[%clk 0:00:05]}  Nd5+ {[%clk 0:00:12]} 64. Kd3 {[%clk 0:00:06]}  Rf1 {[%clk 0:00:11]} 65. Ra8 {[%clk 0:00:06]}  Rd1+ {[%clk 0:00:10]} 66. Ke2 {[%clk 0:00:07]}  Rc1 {[%clk 0:00:10]} 67. Re8+ {[%clk 0:00:06]}  Ne7 {[%clk 0:00:10]} 0-1


[Site "https://www.chess.com"]

[Event "Titled Tuesday Blitz March 28 Early 2023"]
[White "Lazavik, Denis"]
[Black "Idani, Pouya"]
[WhiteFideId "13515110"]
[BlackFideId "12510130"]
[WhiteElo "2560"]
[BlackElo "2574"]
[Result "1-0"]
[Round "03"]
[TimeControl "180+2"]
[Date "2023.03.28"]
[WhiteClock "0:01:13"]
[BlackClock "0:00:36"]

1. d4 {[%clk 0:03:00]}  Nf6 {[%clk 0:02:53]} 2. c4 {[%clk 0:03:01]}  e6 {[%clk 0:02:53]} 3. Nf3 {[%clk 0:03:01]}  d5 {[%clk 0:02:53]} 4. g3 {[%clk 0:03:01]}  Be7 {[%clk 0:02:53]} 5. Bg2 {[%clk 0:03:02]}  O-O {[%clk 0:02:52]} 6. O-O {[%clk 0:03:03]}  dxc4 {[%clk 0:02:52]} 7. Qc2 {[%clk 0:03:03]}  b5 {[%clk 0:02:52]} 8. a4 {[%clk 0:03:03]}  b4 {[%clk 0:02:53]} 9. Nbd2 {[%clk 0:03:03]}  Bb7 {[%clk 0:02:41]} 10. Nxc4 {[%clk 0:03:03]}  Nbd7 {[%clk 0:02:37]} 11. Rd1 {[%clk 0:02:59]}  Rc8 {[%clk 0:02:12]} 12. Bf4 {[%clk 0:02:42]}  c5 {[%clk 0:01:51]} 13. Nd6 {[%clk 0:02:40]}  Bxd6 {[%clk 0:01:39]} 14. Bxd6 {[%clk 0:02:41]}  Re8 {[%clk 0:01:21]} 15. dxc5 {[%clk 0:02:26]}  Qa5 {[%clk 0:01:20]} 16. Rac1 {[%clk 0:02:04]}  Ne4 {[%clk 0:01:18]} 17. Ne5 {[%clk 0:01:36]}  Ndxc5 {[%clk 0:01:06]} 18. Bxc5 {[%clk 0:01:25]}  Rxc5 {[%clk 0:01:03]} 19. Nc4 {[%clk 0:01:24]}  b3 {[%clk 0:00:36]} 20. Qd3 {[%clk 0:01:13]} 1-0


[Site "https://www.chess.com"]

[Event "Titled Tuesday Blitz March 28 Early 2023"]
[White "Xu, Yi"]
[Black "Le, Tuan Minh"]
[WhiteFideId "8605564"]
[BlackFideId "12401153"]
[WhiteElo "2471"]
[BlackElo "2558"]
[Result "0-1"]
[Round "03"]
[TimeControl "180+2"]
[Date "2023.03.28"]
[WhiteClock "0:01:44"]
[BlackClock "0:02:27"]

1. e4 {[%clk 0:03:00]}  c5 {[%clk 0:02:59]} 2. Nf3 {[%clk 0:03:01]}  Nf6 {[%clk 0:02:59]} 3. e5 {[%clk 0:03:01]}  Nd5 {[%clk 0:03:00]} 4. Nc3 {[%clk 0:03:00]}  Nxc3 {[%clk 0:03:01]} 5. dxc3 {[%clk 0:02:59]}  Nc6 {[%clk 0:03:01]} 6. Bc4 {[%clk 0:02:55]}  e6 {[%clk 0:03:00]} 7. Bf4 {[%clk 0:02:43]}  h6 {[%clk 0:02:59]} 8. h4 {[%clk 0:02:43]}  Qc7 {[%clk 0:02:58]} 9. Qd2 {[%clk 0:02:41]}  b6 {[%clk 0:02:56]} 10. O-O-O {[%clk 0:02:39]}  Bb7 {[%clk 0:02:56]} 11. Rhe1 {[%clk 0:02:36]}  O-O-O {[%clk 0:02:55]} 12. Kb1 {[%clk 0:02:30]}  Kb8 {[%clk 0:02:54]} 13. Qe3 {[%clk 0:02:24]}  Ka8 {[%clk 0:02:54]} 14. Nd2 {[%clk 0:02:22]}  d5 {[%clk 0:02:49]} 15. exd6 {[%clk 0:02:21]}  Bxd6 {[%clk 0:02:49]} 16. Bxd6 {[%clk 0:02:20]}  Qxd6 {[%clk 0:02:49]} 17. f3 {[%clk 0:02:14]}  Rd7 {[%clk 0:02:45]} 18. Be2 {[%clk 0:02:08]}  Rhd8 {[%clk 0:02:35]} 19. a3 {[%clk 0:01:58]}  Qg3 {[%clk 0:02:32]} 20. Ne4 {[%clk 0:01:51]}  Qxh4 {[%clk 0:02:29]} 21. g3 {[%clk 0:01:46]}  Qe7 {[%clk 0:02:28]} 22. Bb5 {[%clk 0:01:44]}  Rxd1+ {[%clk 0:02:27]} 0-1


[Site "https://www.chess.com"]

[Event "Titled Tuesday Blitz March 28 Early 2023"]
[White "Gabrielian, Artur"]
[Black "Wei, Yi"]
[WhiteFideId "4131002"]
[BlackFideId "8603405"]
[WhiteElo "2432"]
[BlackElo "2686"]
[Result "1-0"]
[Round "03"]
[TimeControl "180+2"]
[Date "2023.03.28"]
[WhiteClock "0:00:07"]
[BlackClock "0:00:01"]

1. e4 {[%clk 0:02:58]}  c6 {[%clk 0:03:00]} 2. d4 {[%clk 0:02:58]}  d5 {[%clk 0:03:00]} 3. e5 {[%clk 0:02:59]}  c5 {[%clk 0:02:59]} 4. Nf3 {[%clk 0:02:57]}  cxd4 {[%clk 0:02:59]} 5. Nxd4 {[%clk 0:02:56]}  Nc6 {[%clk 0:02:58]} 6. Nxc6 {[%clk 0:02:56]}  bxc6 {[%clk 0:02:58]} 7. Bd3 {[%clk 0:02:56]}  e6 {[%clk 0:02:57]} 8. O-O {[%clk 0:02:56]}  Ne7 {[%clk 0:02:56]} 9. Nd2 {[%clk 0:02:55]}  Ng6 {[%clk 0:02:51]} 10. Nf3 {[%clk 0:02:55]}  Be7 {[%clk 0:02:52]} 11. Re1 {[%clk 0:02:55]}  O-O {[%clk 0:02:51]} 12. g3 {[%clk 0:02:55]}  c5 {[%clk 0:02:41]} 13. c3 {[%clk 0:02:52]}  f5 {[%clk 0:02:33]} 14. exf6 {[%clk 0:02:18]}  Bxf6 {[%clk 0:02:28]} 15. Qc2 {[%clk 0:02:17]}  Qe8 {[%clk 0:01:45]} 16. h4 {[%clk 0:02:10]}  e5 {[%clk 0:01:26]} 17. h5 {[%clk 0:02:01]}  e4 {[%clk 0:01:26]} 18. hxg6 {[%clk 0:02:01]}  hxg6 {[%clk 0:00:43]} 19. Bf1 {[%clk 0:01:53]}  Bf5 {[%clk 0:00:33]} 20. Qd1 {[%clk 0:01:52]}  Rd8 {[%clk 0:00:28]} 21. Ng5 {[%clk 0:01:52]}  Qe7 {[%clk 0:00:25]} 22. Nh3 {[%clk 0:01:52]}  g5 {[%clk 0:00:23]} 23. Qh5 {[%clk 0:01:47]}  g6 {[%clk 0:00:18]} 24. Qh6 {[%clk 0:01:47]}  g4 {[%clk 0:00:17]} 25. Ng5 {[%clk 0:01:45]}  Qg7 {[%clk 0:00:06]} 26. Qxg7+ {[%clk 0:01:35]}  Kxg7 {[%clk 0:00:07]} 27. c4 {[%clk 0:01:19]}  Rfe8 {[%clk 0:00:07]} 28. cxd5 {[%clk 0:01:19]}  Rxd5 {[%clk 0:00:07]} 29. Bg2 {[%clk 0:01:18]}  Rd4 {[%clk 0:00:05]} 30. Be3 {[%clk 0:01:18]}  Rc4 {[%clk 0:00:02]} 31. Rac1 {[%clk 0:01:17]}  Rxc1 {[%clk 0:00:02]} 32. Rxc1 {[%clk 0:01:17]}  Bd4 {[%clk 0:00:02]} 33. b4 {[%clk 0:01:16]}  Kf6 {[%clk 0:00:02]} 34. Nh7+ {[%clk 0:01:08]}  Kg7 {[%clk 0:00:02]} 35. Bxd4+ {[%clk 0:01:08]}  cxd4 {[%clk 0:00:02]} 36. Rc7+ {[%clk 0:01:09]}  Kh6 {[%clk 0:00:02]} 37. Nf6 {[%clk 0:01:09]}  Re5 {[%clk 0:00:02]} 38. Bxe4 {[%clk 0:01:04]}  Kg5 {[%clk 0:00:01]} 39. Bxf5 {[%clk 0:00:59]}  gxf5 {[%clk 0:00:02]} 40. Nd7 {[%clk 0:00:40]}  Re1+ {[%clk 0:00:02]} 41. Kg2 {[%clk 0:00:40]}  d3 {[%clk 0:00:03]} 42. Ne5 {[%clk 0:00:13]}  d2 {[%clk 0:00:03]} 43. f4+ {[%clk 0:00:14]}  Kf6 {[%clk 0:00:03]} 44. Rc6+ {[%clk 0:00:05]}  Ke7 {[%clk 0:00:03]} 45. Rc7+ {[%clk 0:00:05]}  Ke6 {[%clk 0:00:03]} 46. Rc6+ {[%clk 0:00:04]}  Kd5 {[%clk 0:00:04]} 47. Rc5+ {[%clk 0:00:05]}  Kd4 {[%clk 0:00:04]} 48. Rc4+ {[%clk 0:00:05]}  Ke3 {[%clk 0:00:04]} 49. Rc3+ {[%clk 0:00:05]}  Kd4 {[%clk 0:00:03]} 50. Rd3+ {[%clk 0:00:05]}  Ke4 {[%clk 0:00:03]} 51. Rxd2 {[%clk 0:00:06]}  Ra1 {[%clk 0:00:02]} 52. Rf2 {[%clk 0:00:06]}  Rb1 {[%clk 0:00:02]} 53. Nf7 {[%clk 0:00:07]}  Kd5 {[%clk 0:00:02]} 54. Ng5 {[%clk 0:00:08]}  Rxb4 {[%clk 0:00:02]} 55. Re2 {[%clk 0:00:08]}  Ra4 {[%clk 0:00:01]} 56. Re5+ {[%clk 0:00:09]}  Kc4 {[%clk 0:00:02]} 57. Rxf5 {[%clk 0:00:09]}  Rxa2+ {[%clk 0:00:02]} 58. Kf1 {[%clk 0:00:10]}  Kd3 {[%clk 0:00:02]} 59. Re5 {[%clk 0:00:09]}  Ra1+ {[%clk 0:00:01]} 60. Kf2 {[%clk 0:00:09]}  Ra2+ {[%clk 0:00:01]} 61. Kf1 {[%clk 0:00:09]}  a5 {[%clk 0:00:01]} 62. Re1 {[%clk 0:00:07]}  Kd4 {[%clk 0:00:01]} 63. f5 {[%clk 0:00:07]} 1-0


[Site "https://www.chess.com"]

[Event "Titled Tuesday Blitz March 28 Early 2023"]
[White "Kezin, Roman"]
[Black "Paravyan, David"]
[WhiteFideId "24124621"]
[BlackFideId "4194985"]
[WhiteElo "2497"]
[BlackElo "2577"]
[Result "1/2-1/2"]
[Round "03"]
[TimeControl "180+2"]
[Date "2023.03.28"]
[WhiteClock "0:00:11"]
[BlackClock "0:00:04"]

1. e4 {[%clk 0:02:56]}  e5 {[%clk 0:02:59]} 2. Nf3 {[%clk 0:02:55]}  Nf6 {[%clk 0:03:00]} 3. Nc3 {[%clk 0:02:52]}  Nc6 {[%clk 0:03:00]} 4. Bb5 {[%clk 0:02:39]}  Nd4 {[%clk 0:02:58]} 5. O-O {[%clk 0:02:36]}  c6 {[%clk 0:02:58]} 6. Bc4 {[%clk 0:02:03]}  Nxf3+ {[%clk 0:02:49]} 7. Qxf3 {[%clk 0:02:02]}  d6 {[%clk 0:02:49]} 8. d3 {[%clk 0:01:47]}  Be7 {[%clk 0:02:45]} 9. h3 {[%clk 0:01:36]}  h6 {[%clk 0:02:44]} 10. Qe2 {[%clk 0:01:26]}  g5 {[%clk 0:02:29]} 11. Be3 {[%clk 0:01:26]}  g4 {[%clk 0:02:18]} 12. h4 {[%clk 0:01:26]}  Nh5 {[%clk 0:02:18]} 13. d4 {[%clk 0:01:13]}  Bxh4 {[%clk 0:01:47]} 14. dxe5 {[%clk 0:01:05]}  dxe5 {[%clk 0:01:48]} 15. Rad1 {[%clk 0:01:05]}  Qe7 {[%clk 0:01:41]} 16. b4 {[%clk 0:00:58]}  Qxb4 {[%clk 0:01:25]} 17. Nd5 {[%clk 0:00:31]}  cxd5 {[%clk 0:01:24]} 18. Rxd5 {[%clk 0:00:20]}  O-O {[%clk 0:01:09]} 19. Rxe5 {[%clk 0:00:17]}  Ng7 {[%clk 0:00:54]} 20. Rd1 {[%clk 0:00:03]}  Bf6 {[%clk 0:00:51]} 21. Rb5 {[%clk 0:00:02]}  Qc3 {[%clk 0:00:50]} 22. Rc5 {[%clk 0:00:03]}  Qa3 {[%clk 0:00:36]} 23. e5 {[%clk 0:00:02]}  Be7 {[%clk 0:00:36]} 24. Rc7 {[%clk 0:00:03]}  Ne8 {[%clk 0:00:27]} 25. Bc1 {[%clk 0:00:02]}  Qb4 {[%clk 0:00:27]} 26. c3 {[%clk 0:00:02]}  Qb6 {[%clk 0:00:13]} 27. Rxe7 {[%clk 0:00:02]}  Ng7 {[%clk 0:00:14]} 28. Be3 {[%clk 0:00:01]}  Qg6 {[%clk 0:00:15]} 29. Bc5 {[%clk 0:00:01]}  Be6 {[%clk 0:00:15]} 30. Bxe6 {[%clk 0:00:02]}  Nxe6 {[%clk 0:00:16]} 31. Bd6 {[%clk 0:00:02]}  Rfe8 {[%clk 0:00:16]} 32. Rxe8+ {[%clk 0:00:02]}  Rxe8 {[%clk 0:00:17]} 33. Qe3 {[%clk 0:00:02]}  h5 {[%clk 0:00:17]} 34. Qxa7 {[%clk 0:00:02]}  Qe4 {[%clk 0:00:18]} 35. Qe3 {[%clk 0:00:02]}  Qxe3 {[%clk 0:00:18]} 36. fxe3 {[%clk 0:00:03]}  Rc8 {[%clk 0:00:19]} 37. Rb1 {[%clk 0:00:03]}  Rxc3 {[%clk 0:00:19]} 38. Rxb7 {[%clk 0:00:03]}  g3 {[%clk 0:00:19]} 39. Kf1 {[%clk 0:00:03]}  Rc2 {[%clk 0:00:19]} 40. a4 {[%clk 0:00:03]}  Rf2+ {[%clk 0:00:20]} 41. Kg1 {[%clk 0:00:03]}  Ra2 {[%clk 0:00:20]} 42. Kf1 {[%clk 0:00:02]}  Rxa4 {[%clk 0:00:20]} 43. Ke2 {[%clk 0:00:03]}  h4 {[%clk 0:00:19]} 44. Rb2 {[%clk 0:00:01]}  Kg7 {[%clk 0:00:19]} 45. Rb1 {[%clk 0:00:02]}  Kg6 {[%clk 0:00:19]} 46. Rb2 {[%clk 0:00:02]}  Kf5 {[%clk 0:00:19]} 47. Be7 {[%clk 0:00:02]}  Kg4 {[%clk 0:00:15]} 48. Rb8 {[%clk 0:00:02]}  Ra2+ {[%clk 0:00:15]} 49. Kf1 {[%clk 0:00:03]}  Ra1+ {[%clk 0:00:06]} 50. Ke2 {[%clk 0:00:03]}  Ra2+ {[%clk 0:00:07]} 51. Kf1 {[%clk 0:00:03]}  Ra4 {[%clk 0:00:08]} 52. Rg8+ {[%clk 0:00:03]}  Kf5 {[%clk 0:00:08]} 53. Rh8 {[%clk 0:00:03]}  Ra1+ {[%clk 0:00:08]} 54. Ke2 {[%clk 0:00:03]}  Ra2+ {[%clk 0:00:08]} 55. Kf1 {[%clk 0:00:04]}  Rf2+ {[%clk 0:00:09]} 56. Kg1 {[%clk 0:00:04]}  Re2 {[%clk 0:00:09]} 57. Kf1 {[%clk 0:00:04]}  Rxe3 {[%clk 0:00:10]} 58. Rxh4 {[%clk 0:00:05]}  Rxe5 {[%clk 0:00:09]} 59. Rh5+ {[%clk 0:00:04]}  Ke4 {[%clk 0:00:10]} 60. Rxe5+ {[%clk 0:00:05]}  Kxe5 {[%clk 0:00:10]} 61. Ke2 {[%clk 0:00:06]}  Ke4 {[%clk 0:00:11]} 62. Bd6 {[%clk 0:00:05]}  Nd4+ {[%clk 0:00:10]} 63. Kf1 {[%clk 0:00:05]}  Nf5 {[%clk 0:00:11]} 64. Bc7 {[%clk 0:00:06]}  Ke3 {[%clk 0:00:08]} 65. Bb6+ {[%clk 0:00:05]}  Kd2 {[%clk 0:00:08]} 66. Ba5+ {[%clk 0:00:05]}  Kd1 {[%clk 0:00:09]} 67. Bc7 {[%clk 0:00:06]}  Kd2 {[%clk 0:00:07]} 68. Ba5+ {[%clk 0:00:05]}  Ke3 {[%clk 0:00:07]} 69. Bb6+ {[%clk 0:00:06]}  Kf4 {[%clk 0:00:07]} 70. Bc7+ {[%clk 0:00:06]}  Kg4 {[%clk 0:00:08]} 71. Bb6 {[%clk 0:00:07]}  Nh4 {[%clk 0:00:07]} 72. Bc7 {[%clk 0:00:06]}  f5 {[%clk 0:00:08]} 73. Bd6 {[%clk 0:00:06]}  Ng6 {[%clk 0:00:08]} 74. Bc7 {[%clk 0:00:07]}  Nf8 {[%clk 0:00:08]} 75. Bb8 {[%clk 0:00:07]}  Ne6 {[%clk 0:00:08]} 76. Be5 {[%clk 0:00:08]}  Nc5 {[%clk 0:00:08]} 77. Bb8 {[%clk 0:00:07]}  Nd3 {[%clk 0:00:08]} 78. Ba7 {[%clk 0:00:07]}  Nb4 {[%clk 0:00:08]} 79. Bb8 {[%clk 0:00:08]}  Nd5 {[%clk 0:00:08]} 80. Ba7 {[%clk 0:00:08]}  f4 {[%clk 0:00:09]} 81. Bd4 {[%clk 0:00:07]}  Kf5 {[%clk 0:00:08]} 82. Ba7 {[%clk 0:00:08]}  Ke4 {[%clk 0:00:08]} 83. Bb8 {[%clk 0:00:08]}  Ne3+ {[%clk 0:00:08]} 84. Kg1 {[%clk 0:00:08]}  Nf5 {[%clk 0:00:08]} 85. Kf1 {[%clk 0:00:08]}  Ng7 {[%clk 0:00:06]} 86. Bc7 {[%clk 0:00:08]}  Ne6 {[%clk 0:00:06]} 87. Bb8 {[%clk 0:00:09]}  Ke3 {[%clk 0:00:06]} 88. Ba7+ {[%clk 0:00:08]}  Kd3 {[%clk 0:00:06]} 89. Bb8 {[%clk 0:00:09]}  Ke4 {[%clk 0:00:06]} 90. Bd6 {[%clk 0:00:08]}  Nd4 {[%clk 0:00:06]} 91. Bb8 {[%clk 0:00:09]}  Nc2 {[%clk 0:00:06]} 92. Bc7 {[%clk 0:00:09]}  Ne3+ {[%clk 0:00:06]} 93. Kg1 {[%clk 0:00:10]}  Kf5 {[%clk 0:00:07]} 94. Bb8 {[%clk 0:00:10]}  Kg4 {[%clk 0:00:07]} 95. Bc7 {[%clk 0:00:10]}  Nf5 {[%clk 0:00:06]} 96. Kf1 {[%clk 0:00:10]}  Nh6 {[%clk 0:00:06]} 97. Bb8 {[%clk 0:00:10]}  Nf7 {[%clk 0:00:06]} 98. Bc7 {[%clk 0:00:11]}  Ng5 {[%clk 0:00:06]} 99. Bb8 {[%clk 0:00:12]}  Ne6 {[%clk 0:00:06]} 100. Bd6 {[%clk 0:00:12]}  Kf5 {[%clk 0:00:06]} 101. Bb8 {[%clk 0:00:12]}  Ke4 {[%clk 0:00:07]} 102. Ke2 {[%clk 0:00:12]}  Nd4+ {[%clk 0:00:04]} 103. Kf1 {[%clk 0:00:13]}  Nb3 {[%clk 0:00:03]} 104. Bc7 {[%clk 0:00:13]}  Nc5 {[%clk 0:00:03]} 105. Bb8 {[%clk 0:00:13]}  Na6 {[%clk 0:00:03]} 106. Bd6 {[%clk 0:00:12]}  Kf5 {[%clk 0:00:02]} 107. Ke2 {[%clk 0:00:12]}  Kg4 {[%clk 0:00:03]} 108. Kd3 {[%clk 0:00:10]}  f3 {[%clk 0:00:03]} 109. gxf3+ {[%clk 0:00:11]}  Kxf3 {[%clk 0:00:04]} 110. Bxg3 {[%clk 0:00:11]} 1/2-1/2


[Site "https://www.chess.com"]

[Event "Titled Tuesday Blitz March 28 Early 2023"]
[White "Makhnev, Denis"]
[Black "Molina, Roberto Junio Brito"]
[WhiteFideId "13707647"]
[BlackFideId "2109450"]
[WhiteElo "2525"]
[BlackElo "2376"]
[Result "0-1"]
[Round "03"]
[TimeControl "180+2"]
[Date "2023.03.28"]
[WhiteClock "0:00:02"]
[BlackClock "0:00:13"]

1. d4 {[%clk 0:02:58]}  d5 {[%clk 0:02:59]} 2. c4 {[%clk 0:02:55]}  c6 {[%clk 0:02:59]} 3. Nf3 {[%clk 0:02:56]}  Nf6 {[%clk 0:02:57]} 4. Qb3 {[%clk 0:02:56]}  dxc4 {[%clk 0:02:56]} 5. Qxc4 {[%clk 0:02:57]}  Bf5 {[%clk 0:02:56]} 6. g3 {[%clk 0:02:58]}  Nbd7 {[%clk 0:02:53]} 7. Bg2 {[%clk 0:02:58]}  h6 {[%clk 0:02:53]} 8. O-O {[%clk 0:02:57]}  e6 {[%clk 0:02:54]} 9. Nbd2 {[%clk 0:02:55]}  Be7 {[%clk 0:02:53]} 10. Qb3 {[%clk 0:02:55]}  Qb6 {[%clk 0:02:53]} 11. Nc4 {[%clk 0:02:55]}  Qxb3 {[%clk 0:02:52]} 12. axb3 {[%clk 0:02:55]}  Be4 {[%clk 0:02:32]} 13. Bf4 {[%clk 0:02:54]}  O-O {[%clk 0:02:28]} 14. Bd6 {[%clk 0:02:43]}  Bxd6 {[%clk 0:02:00]} 15. Nxd6 {[%clk 0:02:43]}  Bxf3 {[%clk 0:02:01]} 16. Bxf3 {[%clk 0:02:42]}  Rfb8 {[%clk 0:02:01]} 17. b4 {[%clk 0:01:52]}  a6 {[%clk 0:01:55]} 18. e4 {[%clk 0:01:52]}  Ne8 {[%clk 0:01:54]} 19. Nc4 {[%clk 0:01:48]}  Rd8 {[%clk 0:01:52]} 20. d5 {[%clk 0:01:44]}  cxd5 {[%clk 0:01:22]} 21. exd5 {[%clk 0:01:45]}  exd5 {[%clk 0:01:23]} 22. Bxd5 {[%clk 0:01:45]}  Ne5 {[%clk 0:01:22]} 23. Nb6 {[%clk 0:01:37]}  Rab8 {[%clk 0:01:22]} 24. Rad1 {[%clk 0:00:46]}  Rd6 {[%clk 0:01:00]} 25. f4 {[%clk 0:00:44]}  Nf3+ {[%clk 0:00:41]} 26. Bxf3 {[%clk 0:00:38]}  Rxb6 {[%clk 0:00:42]} 27. Rd4 {[%clk 0:00:38]}  Nf6 {[%clk 0:00:40]} 28. Rc1 {[%clk 0:00:35]}  Kf8 {[%clk 0:00:31]} 29. Rc5 {[%clk 0:00:31]}  g6 {[%clk 0:00:31]} 30. g4 {[%clk 0:00:31]}  Re8 {[%clk 0:00:29]} 31. Kf2 {[%clk 0:00:29]}  Re7 {[%clk 0:00:28]} 32. h4 {[%clk 0:00:21]}  Kg7 {[%clk 0:00:24]} 33. g5 {[%clk 0:00:20]}  hxg5 {[%clk 0:00:23]} 34. fxg5 {[%clk 0:00:19]}  Nh7 {[%clk 0:00:23]} 35. b5 {[%clk 0:00:11]}  f6 {[%clk 0:00:22]} 36. Rdd5 {[%clk 0:00:06]}  fxg5 {[%clk 0:00:21]} 37. hxg5 {[%clk 0:00:07]}  Nf8 {[%clk 0:00:17]} 38. Kg3 {[%clk 0:00:05]}  Kf7 {[%clk 0:00:14]} 39. Re5 {[%clk 0:00:03]}  Rxe5 {[%clk 0:00:14]} 40. Rxe5 {[%clk 0:00:04]}  axb5 {[%clk 0:00:13]} 41. Rc5 {[%clk 0:00:03]}  Ne6 {[%clk 0:00:11]} 42. Bd5 {[%clk 0:00:03]}  Ke7 {[%clk 0:00:12]} 43. Bxe6 {[%clk 0:00:03]}  Kxe6 {[%clk 0:00:13]} 44. Kf4 {[%clk 0:00:02]}  b4 {[%clk 0:00:13]} 45. Rc7 {[%clk 0:00:02]}  Kd5 {[%clk 0:00:13]} 0-1


[Site "https://www.chess.com"]